Cogmind - Beta 16 @@@ ROGUE MODE // 2025.10.27 @ 20:55:46 Player: Moodge Result: Destroyed by B-36 Bruiser via exploding Neutrino Reactor Performance ------------- Evolutions (1) 500 Regions Visited (2) 400 Robots Destroyed (24) 120 Value Destroyed (722) 722 Prototype IDs (0) 0 Alien Tech Used (0) 0 Bonus (0) 0 TOTAL SCORE: 1742 Bonus ------- None Cogmind --------- Core Integrity 0/400 Matter 7/300 Energy 100/100 System Corruption 8% Temperature Cool (0) Movement Walking (260) Ox2 Location -9/Materials Parts ------- > --- POWER (1) -------- (None) > --- PROPULSION (4) --- Aluminum Leg Aluminum Leg Aluminum Leg > --- UTILITY (2) ------ High-capacity Storage Unit High-capacity Storage Unit > --- WEAPON (2) ------- (None) > --- INVENTORY (20) --- Light Ion Engine Hover Unit Hover Unit Hover Unit Improved Heat Sink High-capacity Storage Unit Structural Scanner Visual Processing Unit Terrain Scan Processor Transport Network Coupler EM Pulse Gun Small Laser Small Laser Advanced Beam Cannon Mining Laser Peak State ------------ > --- POWER ------------ Improved Ion Engine > --- PROPULSION ------- Aluminum Leg Improved Aluminum Leg Improved Aluminum Leg Improved Aluminum Leg > --- UTILITY ---------- High-capacity Storage Unit High-capacity Storage Unit > --- WEAPON ----------- EM Pulse Gun Small Laser > --- INVENTORY -------- Light Ion Engine Aluminum Leg Aluminum Leg Aluminum Leg Aluminum Leg Hover Unit Hover Unit Hover Unit Improved Heat Sink Small Storage Unit High-capacity Storage Unit High-capacity Storage Unit High-capacity Storage Unit Structural Scanner Visual Processing Unit Transport Network Coupler Small Laser Advanced Beam Cannon Grenade Launcher Grenade Launcher [Rating: 15] Favorites ----------- Power Ion Engine Engine Ion Engine Propulsion Aluminum Leg Leg Aluminum Leg Utility High-capacity Storage Unit Storage High-capacity Storage Unit Weapon Small Laser Energy Gun Small Laser Launcher Grenade Launcher Build | -11 -10 -9 ------- Run | Yrd Mat Mat Slots Evolved 2 | . . 2 Power . | . . . Propulsion 2 | . . 2 Utility . | . . . Weapon . | . . . Parts Attached 17 | 6 2 9 Power 2 | 1 . 1 Engine 2 | 1 . 1 Core . | . . . Reactor . | . . . Propulsion 7 | 2 . 5 Treads . | . . . Leg 7 | 2 . 5 Wheel . | . . . Hover . | . . . Flight . | . . . Utility 3 | 1 2 . Device . | . . . Storage 3 | 1 2 . Processor . | . . . Hackware . | . . . Protection . | . . . Artifact . | . . . Weapon 5 | 2 . 3 Energy Gun 3 | 2 . 1 Energy Cannon . | . . . Ballistic Gun . | . . . Ballistic Cannon . | . . . Launcher 2 | . . 2 Special Weapon . | . . . Impact Weapon . | . . . Slashing Weapon . | . . . Piercing Weapon . | . . . Special Melee Weapon . | . . . Unidentified Prototypes . | . . . Parts Lost 9 | . . 9 Power 2 | . . 2 Propulsion 4 | . . 4 Utility . | . . . Weapon 3 | . . 3 Highest Loss Streak 6 | . . 6 To Critical Strikes . | . . . Average Backups 15 | 2 14 16 Power . | . 1 1 Propulsion 3 | . 1 5 Utility 7 | . 8 6 Weapon 3 | 1 2 3 Tool/Special . | . . . Unused Backups 19 | . . 19 Power 1 | . . 1 Propulsion 4 | . . 4 Utility 11 | . . 11 Weapon 3 | . . 3 Tool/Special . | . . . Average Slot Usage (%) 93 | . 99 88 Engine 11 | . 14 9 Leg 32 | . 28 36 Storage 24 | . 27 22 Energy Gun 17 | . 28 7 Launcher 6 | . . 12 Peak Build Rating 15 | 6 9 15 Average Rating 10 | 3 8 13 On Entrance 5 | . 6 9 Avg Prop Armor Cover (%) . | . . . Naked Turns . | . . . Heaviest Build 93 | 13 88 93 Greatest Support 49 | 20 20 49 Greatest Overweight (x) 26 | 2 4 26 Average Overweight (x) 2 | . 3 1 Largest Inventory Capacity 20 | 8 20 20 Average Capacity 19 | 6 19 20 Most Carried 20 | 5 19 20 Average Carried 15 | 2 14 16 Final Capacity 20 | 8 20 20 Final Carried 19 | 2 19 15 Class Distribution -------------------- 100% | Mutant Dominant Class ---------------- Mutant | -10/Materials Mutant | -9/Materials Resources | -11 -10 -9 ----------- Run | Yrd Mat Mat Matter Collected 385 | 257 23 105 Remotely . | . . . Salvage Created 763 | . 250 513 Parts 34 | . 13 21 Haulers Intercepted . | . . . Recyclers Shooed . | . . . Parts Field Recycled . | . . . Retrieved Matter . | . . . Parts Self-Destructed . | . . . Prevented . | . . . Parts Restored . | . . . Kills | -11 -10 -9 ------- Run | Yrd Mat Mat Combat Hostiles Destroyed 16 | . 5 11 Guns 8 | . 5 3 AOE 8 | . . 8 Classes Destroyed 6 | . 2 4 Builder 1 | . . 1 Recycler 3 | . . 3 Watcher 4 | . 2 2 Grunt 13 | . 5 8 Duelist 1 | . . 1 Sentry 2 | . . 2 Best Kill Streak 4 | . 2 4 Combat Bots Only 3 | . 2 3 Max Kills in Single Turn 2 | . 1 2 Gunslinging . | . . . Exploded 2 | . . 2 Melee . | . . . Uniques/NPCs Destroyed . | . . . Combat | -11 -10 -9 -------- Run | Yrd Mat Mat Hostile Shots Fired 138 | . 22 116 Missed 31 | . 4 27 Hits 107 | . 18 89 Melee 20 | . . 20 Projectile 87 | . 18 69 AOE 1 | . . 1 Critical Strikes 9 | . . 9 Damage Taken 1833 | . 210 1623 Core 456 | . 47 409 Absorbed by Shields . | . . . Core Remaining (%) 90 | 100 81 . Volleys Fired 57 | . 24 33 Largest 2 | . 2 2 Hottest 90 | . 90 90 Shots Fired 110 | . 47 63 Gun 77 | . 47 30 Cannon . | . . . Launcher 33 | . . 33 Special . | . . . Kinetic . | . . . Thermal 66 | . 47 19 Explosive 33 | . . 33 Electromagnetic 11 | . . 11 Robot Hit Streak 11 | . 7 11 Robot Miss Streak 5 | . 5 5 Penetration Max . | . . . Secondary Targets . | . . . Shots Hit Robots 67 | . 27 40 Core Hits 44 | . 14 30 Critical Kills . | . . . Critical Parts Destroyed . | . . . Critical Strikes 5 | . 4 1 Burn 5 | . 4 1 Melee Attacks . | . . . Impact . | . . . Slashing . | . . . Piercing . | . . . Sneak Attacks . | . . . Combat Hostiles . | . . . Follow-up Attacks . | . . . Damage Inflicted 1925 | . 341 1584 Guns 609 | . 341 268 Cannons . | . . . Explosions 1298 | . . 1298 Melee . | . . . Ramming 18 | . . 18 Kinetic . | . . . Thermal 663 | . 341 322 Explosive 1127 | . . 1127 Electromagnetic 117 | . . 117 Impact . | . . . Slashing . | . . . Piercing . | . . . Highest Corruption 8 | . . 8 Average Corruption 5 | . . 5 Corruption Purged . | . . . Corruption Blocked . | . . . Overload Shots . | . . . Overflow Damage 82 | . . 82 Projectiles . | . . . Explosions 82 | . . 82 Melee . | . . . Knockbacks . | . . . Impact . | . . . Kinetic . | . . . Secondary . | . . . Self-Inflicted Damage 219 | . . 219 Shots 8 | . . 8 Rammed . | . . . Targets Rammed 4 | . . 4 Kicked 4 | . . 4 Crushed . | . . . Highest Temperature 246 | . 246 224 Average Temperature 80 | . 77 82 Received Heat Transfer 558 | . 117 441 Effects 3 | . 1 2 Energy Bleed 1 | . 1 . Interference 2 | . . 2 Siege Activations . | . . . Martial Activations . | . . . Shielding Activations . | . . . Robots Disrupted . | . . . Combat Hostiles . | . . . Robots Corrupted . | . . . Combat Hostiles . | . . . Parts Fried 1 | . . 1 Impact Corruptions . | . . . Robots Melted . | . . . Combat Hostiles . | . . . Parts Melted 6 | . 5 1 Heat Transferred 1761 | . 1213 548 Parts Sabotaged . | . . . Parts Stolen . | . . . Parts Stripped . | . . . Power Chain Reactions . | . . . Alert | -11 -10 -9 ------- Run | Yrd Mat Mat Maximum Alert Level 1 | . . 1 Low Security (%) 87 | 100 100 73 Level 1 12 | . . 26 Level 2 . | . . . Level 3 . | . . . Level 4 . | . . . Level 5 . | . . . High Security . | . . . Max Security . | . . . Peak Influence 288 | . 60 288 Initial 13 | . . 13 Average 66 | . 10 129 Influence Increases 670 | . 156 514 Destroy 0b10 Robot/C 320 | . 100 220 Destroy 0b10 Robot/NC 40 | . 10 30 Destroy Leader 88 | . 34 54 Successful Hack 24 | . 12 12 Disable Machine 45 | . . 45 Destroy Structure 153 | . . 153 Influence Decreases 494 | . 124 370 Entered New Map 19 | . . 19 Time Decay 382 | . 124 258 Lost Part 80 | . . 80 Purge Threat 13 | . . 13 Squads Dispatched 5 | . 2 3 Investigation . | . . . Extermination . | . . . Reinforcement 5 | . 2 3 Assault . | . . . Garrison . | . . . Intercept . | . . . Searches Triggered . | . . . Construction Impeded 1 | . . 1 Haulers Reinforced . | . . . Active Scanning Responses . | . . . Cargo Convoy Interrupts . | . . . Stealth | -11 -10 -9 --------- Run | Yrd Mat Mat Distress Signals 2 | . . 2 Communications Jammed . | . . . Distress Signals . | . . . Times Spotted 27 | . 9 18 Peak Tracking Total 5 | . 4 5 Tactical Retreats . | . . . Traps | -11 -10 -9 ------- Run | Yrd Mat Mat Traps Triggered . | . . . Indirectly . | . . . Trap Hack Attempts . | . . . Triggered . | . . . Disarmed . | . . . Reprogrammed . | . . . Reused . | . . . Traps Extracted . | . . . Installed . | . . . Triggered . | . . . Machines | -11 -10 -9 ---------- Run | Yrd Mat Mat Machines Disabled 3 | . . 3 Max in Single Turn 2 | . . 2 Machines Repaired . | . . . Machines Dismantled . | . . . Machines Sabotaged . | . . . Overloaded Fab Kills . | . . . Hacking | -11 -10 -9 --------- Run | Yrd Mat Mat Machines Accessed 3 | . 1 2 Terminals 3 | . 1 2 Fabricators . | . . . Repair Stations . | . . . Recycling Units . | . . . Scanalyzers . | . . . Garrison Access . | . . . Total Hacks 7 | . 2 5 Successful 5 | . 1 4 Failed 2 | . 1 1 Catastrophic . | . . . Database Lockouts . | . . . Manual 5 | . 2 3 Terminals 7 | . 2 5 Fabricators . | . . . Repair Stations . | . . . Recycling Units . | . . . Scanalyzers . | . . . Garrison Access . | . . . Terminal Hacks 2 | . . 2 Alert Level 1 | . . 1 Unreport Threat 1 | . . 1 Fabricator Hacks . | . . . Repair Station Hacks . | . . . Recycling Unit Hacks . | . . . Scanalyzer . | . . . Garrison Access Hacks . | . . . Unauthorized Hacks 3 | . 1 2 Terminals 3 | . 1 2 Track 1 | . 1 . Botnet 2 | . . 2 Fabricators . | . . . Repair Stations . | . . . Recycling Units . | . . . Scanalyzers . | . . . Garrison Access . | . . . Data Cores Recovered . | . . . Used . | . . . Hacking Detections 3 | . 1 2 Full Trace Events . | . . . Feedback Events . | . . . Feedback Blocked . | . . . Robot Schematics Acquired . | . . . Robots Built . | . . . Authchips . | . . . Time . | . . . Total Robot Build Rating . | . . . Part Schematics Acquired . | . . . Parts Built . | . . . Authchips . | . . . Time . | . . . Total Part Build Rating . | . . . Part Studies Acquired . | . . . Parts Repaired . | . . . Time . | . . . Parts Recycled . | . . . Recycled Matter . | . . . Retrieved Matter . | . . . Retrieved Components . | . . . Parts Scanalyzed . | . . . Part Schematics Acquired . | . . . Parts Damaged . | . . . Bothacking | -11 -10 -9 ------------ Run | Yrd Mat Mat Used RIF Installer . | . . . Robots Hacked . | . . . Non-combat . | . . . Combat . | . . . Robot Hacks Applied . | . . . Relay Couplers Released . | . . . Fabnet Peak Effective % . | . . . Robots Rewired . | . . . Allies Hacked . | . . . Hacks Repelled . | . . . Allies | -11 -10 -9 -------- Run | Yrd Mat Mat Total Allies . | . . . Largest Group . | . . . Highest-Rated Group . | . . . Highest-Rated Ally . | . . . Total Orders . | . . . Ally Attacks . | . . . Total Damage . | . . . Kills . | . . . Allies Corrupted . | . . . Allies Melted . | . . . Intel | -11 -10 -9 ------- Run | Yrd Mat Mat Active Infowar (turns) . | . . . Robot Analysis Total . | . . . Derelict Logs Recovered . | . . . Drone Launches . | . . . Drone Recoveries . | . . . Exploration | -11 -10 -9 ------------- Run | Yrd Mat Mat Turns Passed 1759 | 62 855 842 Spaces Moved 537 | 50 200 287 Core 25 | 23 . 2 Treads . | . . . Legs 512 | 27 200 285 Wheels . | . . . Hover . | . . . Flight . | . . . Fastest Speed 50 | 50 120 190 Average Speed 279 | 99 379 241 Slowest Speed 1350 | 150 400 1350 Overloaded Moves . | . . . Propulsion Burnouts . | . . . Robots Hopped . | . . . Potential Cave-ins . | . . . Cave-ins Triggered . | . . . Exploration Rate (%) 24 | 3 32 39 Regions Visited 2 Branch Regions . Pre-discovered Areas . | . . . Known Exits Taken . | . . . Unknown Exits Taken 2 | 1 1 . Scrap Searched . | . . . Spaces Dug . | . . . Terrain Destroyed 185 | . . 185 Melee . | . . . Projectile . | . . . AOE 185 | . . 185 Terrain Rammed . | . . . Walls Destroyed . | . . . Machines Disabled . | . . . Actions | -11 -10 -9 --------- Run | Yrd Mat Mat Total 675 | 61 251 363 Wait 18 | . 8 10 Move 535 | 49 199 287 Hop . | . . . Pick Up 33 | 6 18 9 Fast Attach 4 | 2 . 2 Attach 11 | 4 1 6 Detach . | . . . Swap 6 | . 1 5 Drop 7 | . . 7 Fire 57 | . 24 33 Melee . | . . . Ram . | . . . Kick 4 | . . 4 Crush . | . . . Escape Stasis . | . . . Rewire . | . . . Trap . | . . . Miscellaneous . | . . . Route ------- -11/Scrapyard -10/Materials -9/Materials (discovered 1 exit: [*Min]) History --------- Turn | Location | Event 4 | -11/Scrapyard | Discovered new exit (range 15) 63 | -11/Scrapyard | Entered Materials 317 | -10/Materials | Build established: Mutant 727 | -10/Materials | Discovered new exit (range 9) 918 | -10/Materials | Entered another Materials area 918 | -9/Materials | Evolved 2 slots: Propulsion x2 1490 | -9/Materials | Discovered new exit (range 16) 1718 | -9/Materials | Core integrity fell below 50% 1737 | -9/Materials | Core integrity fell below 20% 1742 | -9/Materials | Lost 6 parts (1p3n2w) 1760 | -9/Materials | Destroyed by B-36 Bruiser via exploding Neutrino Reactor Last Messages --------------- U-05 Engineer builds a Wall. Kicked G-34 Mercenary. Imp. Ion Engine destroyed. Kicked G-34 Mercenary. U-05 Engineer lays Concrete. Imp. Aluminum Leg destroyed. System corrupted by crushing effect (+1). K-01 Serf collects debris. U-05 Engineer lays Concrete. Kicked G-34 Mercenary. Imp. Aluminum Leg destroyed. System corrupted by crushing effect (+4). M-13 Machinist repairs B-36 Bruiser. K-01 Serf collects debris. U-05 Engineer lays Concrete. U-05 Engineer builds a Wall. K-01 Serf collects debris. M-13 Machinist repairs G-34 Mercenary. Knocked back. Neutrino Reactor explodes. Map ----- +----------------------------------------------------+ | " ##[ ########"""""###?+##???????????? | | " ## ###" " # ????????????? | | " ## # # " # ""????????????? | | ## "T" ####% " " "?????????????? | | # ## %/ " #???????????????? | | ##### ## # " #???????????????? | | # ###+### % # " #???????????????? | | ## #?????# + # #???????????????? | | ### #?????# # ## # #???????????????? | | #?# #?????# # ##### ####"#???????????????? | | #?# #?????# ### " #???????????????? | | #?# #?????# #?######" """ #???????????????? | | #?# #?????# #??????## """ #???????????????? | | #?# #?????# ????????# """ #???????????????? | | ### ##????# ????????# #???????????????? | | +### #????? ????????# #???????????????? | | T" #????? ????????# | #???????????????? | | " #??????????????# | #???????????????? | | #??????????????# #???????????????? | | ### #??????????????## ##???????????????? | | ## ####??????????######## ##????????????????? | | #####????????# # #?????????????????? | | ????# # # #?????????? | | ########?????# b #?????????? | | ##????????????# # # #####???????????? | | !! ###?????????????# @ # ###???????????????? | | !! #???????????????# # #?????????????????? | | ########????????????######## #?????????????????? | | ! #???????????????????# #?????????????????? | | !! #???????????????????# #?????????????????? | | = #???????????????????# #?????????????????? | | ! #???????????????????# #?????????????????? | | ########???????????????????? #?????????????????? | | #??????????????????????????? #?????????????????? | | #??????????????????????????? ?????????????????? | | #??????????????????????????? ?????????????????? | | #??????????????????????????? ?????????????????? | | #??????????????????????????? ??????????????????? | | #????????????????????????????????????????????????? | | #????????????????????????????????????????????????? | | #????????????????????????????????????????????????? | | #????????????????????????????????????????????????? | | #????????????????????????????????????????????????? | | ?????????????????????????????????????????????????? | | ?????????????????????????????????????????????????? | | | | | | | | | | | +----------------------------------------------------+ Best States ------------- Heat Dissipation 28 Energy Generation 12 Energy Capacity 265 Matter Stores 300 Matter Capacity 300 Sight Range 16 Terrain Scan Density 10 Evasion (%) 55 Item Schematics ----------------- None Robot Schematics ------------------ None Fabricated ------------ Nothing Repaired ---------- Nothing Studied --------- None Alien Tech Used ----------------- None Achievements -------------- None Challenges ------------ None Game ------ Seed AntimatterAntisysBooster Manual? 0 Play Time 00:15:25 Cumulative 24.6 hours Start 2025.10.27 @ 13:48:41 End 2025.10.27 @ 20:55:46 Sessions 4 Manual Loads 0 Difficulty Rogue Special Mode None Game No. 81 Rogue 81 Adventurer 0 Explorer 0 Win Type - Total 0 Types 0/0/0/0/0/0/0/0/0/0 Lore% 10 Gallery% 22 Achievement% 18 Wizard Run 0 Options --------- Layout 1 ASCII 0 Keyboard 0 Movement Mouse Keybinds 0 Fullscreen 2 Font 32/SmallcapsGlow Map View 50x35 Zoom Use 0% Tactical HUD 0 Map Filters NONE Filters NONE Steam 1 RUN: 34f105ea-3247-4e83-aa36-4539c91fe7c0